Workbook

Sheet RegistroInf (hidden)
B1: Nombre | C1: dsf | E1: Presupuesto Paramétrico | F1: =+W32 -> 
B2: Direccion | C2: dsfdsf | E2: Valor Único | F2: =+W31 -> 
B3: M2 | C3: 12 | E3: Valor Terreno | F3: 12
B4: Estado | C4: Baja California Sur | E4: Valor Terreno + Presupuesto | F4: =+F1+F3 -> 
B5: Municipio | C5: La Paz | E5: Valor Avalúo | F5: 1900 | W5: Monto Paramétrico | X5: =+X6*X7 -> 181763.99
B6: FIC | C6: =+Filtro_Edo_Mpios!K2 -> 0.987 | W6: Unitario Modelo | X6: =+IF($T$7="A",AA24,IF($T$7="B",AE24,IF($T$7="C",AH24,IF($T$7="D",AK24,IF($T$7="E",AN24,IF($T$7="F",AQ24,IF($T$7="G",AT24,IF($T$7="H",AW24)))))))) -> 15146.99917
S7: Modelo Vivienda: | T7: B | W7: SUPERFICIE DEL CLIENTE | X7: =+C3 -> 12 | AA7: A | AE7: B | AH7: C | AK7: D | AN7: E | AQ7: F | AT7: G | AW7: H
B8: Carpintería / GUARDA | K8: Cimentación | M8: FRR | N8: =+M10*M11*M12*M13*M14*M15 -> 1 | P8: ORIGEN | S8: Concepto | T8: Datos | V8: FRR | W8: Monto | X8: % FINAL | Z8: CIMENTACION | AA8: 71750.2 | AB8: 1709.966635 | AC8: 0.1673766137 | AE8: 124244.44 | AF8: 0.1369378608 | AH8: 108223.3 | AI8: 0.07137535152 | AK8: 263426.07 | AL8: 0.1146468649 | AN8: 350347.89 | AO8: 0.1337815736 | AQ8: 657278.29 | AR8: 0.1210717665 | AT8: 994135.47 | AU8: 0.1172918759 | AW8: 1345380.18 | AX8: 0.1037056356
C9: NO APLICA | D9: Económica | E9: Media | F9: Alta | G9: Residencial | H9: Plus | I9: FRR | L9: PARAMETRO | M9: SI | P9: CIMENTACION | Q9: =N8 -> 1 | S9: Cimentacion | T9: =+U9*$X$5 -> 24890.37195 | U9: =+IF($T$7="A",AC8,IF($T$7="B",AF8,IF($T$7="C",AI8,IF($T$7="D",AL8,IF($T$7="E",AO8,IF($T$7="F",AR8,IF($T$7="G",AU8,IF($T$7="H",AX8)))))))) -> 0.1369378608 | V9: =+Q9 -> 1 | W9: =V9*T9 -> 24890.37195 | X9: =+W9/$W$28 ->  | Z9: ESTRUCTURA DE CONCRETO | AA9: 40286.9 | AB9: 960.1263108 | AC9: 0.09398001536 | AE9: 59711.14 | AF9: 0.06581152264 | AH9: 233573.24 | AI9: 0.1540460521 | AK9: 299291.09 | AL9: 0.1302558443 | AN9: 491007.38 | AO9: 0.1874928944 | AQ9: 869571 | AR9: 0.1601764407 | AT9: 1329769.24 | AU9: 0.1568912219 | AW9: 2130519.88 | AX9: 0.1642263813
B10: PARAMETRO | C10: Losacero | D10: 0.95 | E10: 1 | F10: 1.1 | G10: 1.15 | H10: 1.2 | I10: =PRODUCT(I11,I12,I13,I14) -> 0 | K10: Mampostería | L10: 1.02 | M10: 1 | P10: ESTRUCTURA DE CONCRETO | Q10: =N16 -> 1 | S10: Estructura De Concreto | T10: =+U10*$X$5 -> 11962.16494 | U10: =+IF($T$7="A",AC9,IF($T$7="B",AF9,IF($T$7="C",AI9,IF($T$7="D",AL9,IF($T$7="E",AO9,IF($T$7="F",AR9,IF($T$7="G",AU9,IF($T$7="H",AX9)))))))) -> 0.06581152264 | V10: =+Q10 -> 1 | W10: =V10*T10 -> 11962.16494 | X10: =+W10/$W$28 ->  | Z10: ALBAÑILERIA | AA10: 33480.74 | AB10: 797.9204004 | AC10: 0.07810281902 | AE10: 145199.57 | AF10: 0.1600338695 | AH10: 200001.81 | AI10: 0.1319050472 | AK10: 257338.18 | AL10: 0.1119973265 | AN10: 339527.79 | AO10: 0.1296498804 | AQ10: 420900 | AR10: 0.07753048792 | AT10: 886976.38 | AU10: 0.1046488397 | AW10: 1323805.82 | AX10: 0.1020426241
B11: Puertas | I11: =IF(SUM(C11:H11)=0,"",SUM(C11:H11)) ->  | K11: Zapatas | L11: 1 | M11: 1 | P11: ALBAÑILERIA | Q11: =N24 -> 1 | S11: Albañileria | T11: =+U11*$X$5 -> 29088.39466 | U11: 0.1600338695 | V11: 1 | W11: 29088.39466 | Z11: INSTALACION HIDRAULICA | AA11: 12017.84 | AB11: 286.4118208 | AC11: 0.02803483981 | AE11: 57207.5 | AF11: 0.06305209851 | AH11: 67425.21 | AI11: 0.0444682251 | AK11: 73502.5 | AL11: 0.03198935925 | AN11: 120112.71 | AO11: 0.04586546063 | AQ11: 132331.09 | AR11: 0.02437560935 | AT11: 200140.78 | AU11: 0.02361336884 | AW11: 188558.49 | AX11: 0.01453461137 | BB11: =IF(C11<>"",1,0) -> 0 | BC11: 0 | BD11: 0 | BE11: 0 | BF11: 0 | BG11: 0
B12: Clósets | I12: =IF(SUM(C12:H12)=0,"",SUM(C12:H12)) ->  | K12: Pilotes | L12: 1.03 | M12: 1 | P12: INSTALACION HIDRAULICA | Q12: =I41 ->  | S12: Instalacion Hidraulica | T12: 11460.601 | U12: 0.06305209851 | Z12: INSTALACION SANITARIA | AA12: 17780.32 | AB12: 423.7445186 | AC12: 0.04147737221 | AE12: 22006.55 | AF12: 0.02425484698 | AH12: 33275.64 | AI12: 0.02194592571 | AK12: 48753.25 | AL12: 0.02121812494 | AN12: 50611.78 | AO12: 0.01932628614 | AQ12: 88755.68 | AR12: 0.01634894554 | AT12: 134236.04 | AU12: 0.01583767748 | AW12: 167872.39 | AX12: 0.01294006941 | BB12: 0 | BC12: 0 | BD12: 0 | BE12: 0 | BF12: 0 | BG12: 0
B13: Cocina integral | I13: =IF(SUM(C13:H13)=0,"",SUM(C13:H13)) ->  | K13: MIXTO | L13: 1.04 | M13: 1 | P13: INSTALACION SANITARIA | Q13: =I40 ->  | S13: Instalacion Sanitaria | T13: 4408.657763 | U13: 0.02425484698 | X13: =+W13/$W$28 ->  | Z13: INSTALACION ELECTRICA | AA13: 15128.95 | AB13: 360.5564824 | AC13: 0.03529233953 | AE13: 54920.67 | AF13: 0.06053163475 | AH13: 58899.08 | AI13: 0.03884507809 | AK13: 82026.07 | AL13: 0.03569894114 | AN13: 120475.4 | AO13: 0.04600395508 | AQ13: 112056.31 | AR13: 0.02064096077 | AT13: 169476.45 | AU13: 0.0199954748 | AW13: 190217.84 | AX13: 0.01466251867 | BB13: 0 | BC13: 0 | BD13: 0 | BE13: 0 | BF13: 0 | BG13: 0
B14: Otro | I14: =IF(SUM(C14:H14)=0,"",SUM(C14:H14)) ->  | K14: DESCONOCIDO | L14: 1 | M14: 1 | P14: INSTALACION ELECTRICA | Q14: =I39 ->  | S14: Instalacion Electrica | T14: 11002.47145 | U14: 0.06053163475 | W14: =V14*T14 ->  | Z14: INSTALACION DE GAS | AA14: 9292.02 | AB14: 221.4494757 | AC14: 0.0216761325 | AE14: 10471.24 | AF14: 0.01154103319 | AH14: 10219.93 | AI14: 0.006740240746 | AK14: 10437.41 | AL14: 0.00454251295 | AN14: 10219.93 | AO14: 0.003902516204 | AQ14: 6789.61 | AR14: 0.001250657582 | AT14: 10269.06 | AU14: 0.001211582674 | AW14: 15403.6 | AX14: 0.001187352209 | BB14: 0 | BC14: 0 | BD14: 0 | BE14: 0 | BF14: 0 | BG14: 0
B15: Ventanería / CANCELERIA | K15: OTRO | L15: 1.03 | M15: 1 | P15: INSTALACION DE GAS | Q15: =I42 ->  | S15: Instalacion De Gas | T15: 2097.74424 | U15: 0.01154103319 | Z15: ACABADOS INTERIORES | AA15: 60346.6 | AB15: 1438.193518 | AC15: 0.1407746537 | AE15: 185374.31 | AF15: 0.2043130578 | AH15: 422962.11 | AI15: 0.2789516609 | AK15: 681161.75 | AL15: 0.2964515211 | AN15: 588102.41 | AO15: 0.224568973 | AQ15: 1167393.57 | AR15: 0.2150358591 | AT15: 1765591.51 | AU15: 0.2083111875 | AW15: 3239955.4 | AX15: 0.2497447481
C16: NO APLICA | D16: Económica | E16: Media | F16: Alta | G16: Residencial | H16: Plus | I16: FRR | K16: Losas de entrepiso (ESTRUCTURA DE CONCRETO) | M16: FRR | N16: =+M18*M19*M20*M21*M22*M23*M64*M65*M66*M67 -> 1 | P16: ACABADOS INTERIORES | Q16: =I26 -> 0 | S16: Acabados Interiores | T16: =+U16*$X$5 -> 37136.75659 | U16: =+IF($T$7="A",AC15,IF($T$7="B",AF15,IF($T$7="C",AI15,IF($T$7="D",AL15,IF($T$7="E",AO15,IF($T$7="F",AR15,IF($T$7="G",AU15,IF($T$7="H",AX15)))))))) -> 0.2043130578 | V16: =+Q16 -> 0 | W16: 0 | Z16: ACABADOS EXTERIORES | AA16: 50946.32 | AB16: 1214.163966 | AC16: 0.1188459756 | AE16: 95103.09 | AF16: 0.1048192877 | AH16: 111272.51 | AI16: 0.07338636427 | AK16: 241113.46 | AL16: 0.1049360919 | AN16: 240434.35 | AO16: 0.09181070191 | AQ16: 604744.44 | AR16: 0.111394943 | AT16: 914628.49 | AU16: 0.1079113406 | AW16: 1385296.9 | AX16: 0.1067825271
B17: PARAMETRO | C17: 1 | D17: 0.95 | E17: 1 | F17: 1.1 | G17: 1.15 | H17: 1.2 | I17: =PRODUCT(I18,I19,I20,I21,I22,I23) -> 0 | L17: PARAMETRO | M17: SI | P17: ACABADOS EXTERIORES | Q17: =I36 -> 1.02 | S17: Acabados Exteriores | T17: =+U17*$X$5 -> 19052.37195 | U17: =+IF($T$7="A",AC16,IF($T$7="B",AF16,IF($T$7="C",AI16,IF($T$7="D",AL16,IF($T$7="E",AO16,IF($T$7="F",AR16,IF($T$7="G",AU16,IF($T$7="H",AX16)))))))) -> 0.1048192877 | V17: =+Q17 -> 1.02 | W17: 19433.41939 | Z17: ACCESOS | AA17: 16127.49 | AB17: 384.3539085 | AC17: 0.03762170229 | AE17: 35519.8 | AF17: 0.03914867681 | AH17: 71697.7 | AI17: 0.04728601457 | AK17: 73223.42 | AL17: 0.03186789956 | AN17: 87482.25 | AO17: 0.03340540475 | AQ17: 120644.91 | AR17: 0.02222299534 | AT17: 182463.42 | AU17: 0.02152772681 | AW17: 366164.8 | AX17: 0.02822499833
B18: Cristales | I18: =IF(SUM(C18:H18)=0,"",SUM(C18:H18)) ->  | K18: Losa Maciza de concreto | L18: 1.02 | M18: 1 | P18: ACCESOS | Q18: =I45 ->  | S18: Accesos | T18: 7115.819699 | U18: 0.03914867681 | W18: =V18*T18 ->  | Z18: CANCELERIA | AA18: 10002.77 | AB18: 238.3882269 | AC18: 0.02333414778 | AE18: 28521.91 | AF18: 0.03143584808 | AH18: 38895.76 | AI18: 0.02565250314 | AK18: 62287.85 | AL18: 0.02710858012 | AN18: 67746.63 | AO18: 0.02586928886 | AQ18: 132052.83 | AR18: 0.02432435339 | AT18: 199719.76 | AU18: 0.0235636953 | AW18: 329103.98 | AX18: 0.02536824753 | BB18: =IF(C18<>"",1,0) -> 0 | BC18: =IF(D18<>"",1,0) -> 0 | BD18: =IF(E18<>"",1,0) -> 0 | BE18: =IF(F18<>"",1,0) -> 0 | BF18: =IF(G18<>"",1,0) -> 0 | BG18: =IF(H18<>"",1,0) -> 0
B19: Cancelería | K19: Vigueta y bovedilla | L19: 1 | M19: 1 | P19: CANCELERIA | Q19: =I17 -> 0 | S19: Canceleria | T19: 5713.905175 | U19: 0.03143584808 | V19: 0 | W19: 0 | Z19: MOBILIARIO FIJO | AA19: 76564.06 | AB19: 1824.691611 | AC19: 0.1786062351 | AE19: 56405.61 | AF19: 0.0621682835 | AH19: 86652.44 | AI19: 0.05714895374 | AK19: 141978.12 | AL19: 0.06179094706 | AN19: 117705.85 | AO19: 0.04494639267 | AQ19: 424811.21 | AR19: 0.07825093938 | AT19: 642487.96 | AU19: 0.07580316802 | AW19: 849230.34 | AX19: 0.06546102991 | BB19: 0 | BC19: 0 | BD19: 0 | BE19: 0 | BF19: 0 | BG19: 0
B20: Portones/rejas | K20: Losacero | L20: 1.03 | M20: 1 | P20: MOBILIARIO FIJO | Q20: =I48 ->  | S20: Mobiliario Fijo | T20: 11299.95526 | U20: 0.0621682835 | Z20: GUARDA | AA20: 14950.97 | AB20: 356.3148236 | AC20: 0.03487715337 | AE20: 32619.42 | AF20: 0.03595197978 | AH20: 73157.2 | AI20: 0.04824858294 | AK20: 63178 | AL20: 0.02749598638 | AN20: 35030.9 | AO20: 0.01337667233 | AQ20: 267477.38 | AR20: 0.04926978327 | AT20: 404541.25 | AU20: 0.04772931207 | AW20: 457990.6 | AX20: 0.03530318566 | BB20: 0 | BC20: 0 | BD20: 0 | BE20: 0 | BF20: 0 | BG20: 0
B21: Protecciones | K21: MIXTO | L21: 1.04 | M21: 1 | P21: CARPINTERIA | Q21: =I10 -> 0 | S21: Guarda | T21: 6534.775292 | U21: 0.03595197978 | V21: 0 | W21: 0 | Z21: EQUIPOS | AQ21: 11422.79 | AR21: 0.00210409713 | AT21: 17275.3 | AU21: 0.002038205461 | AW21: 68324.29 | AX21: 0.005266625768 | BB21: 0 | BC21: 0 | BD21: 0 | BE21: 0 | BF21: 0 | BG21: 0
B22: Barandales | K22: DESCONOCIDO | L22: 1 | M22: 1 | P22: EQUIPO | Q22: =+IF($T$7="A","",IF($T$7="B","",IF($T$7="C","",IF($T$7="D","",IF($T$7="E",1,IF($T$7="F",1,IF($T$7="G",1,IF($T$7="H",1)))))))) ->  | S22: Equipo | T22: =+IF($T$7="E",U22*$X$5,IF($T$7="F",U22*$X$5,IF($T$7="G",U22*$X$5,IF($T$7="H",U22*$X$5,IF($T$7="A","",IF($T$7="B","",IF($T$7="C","",IF($T$7="D","")))))))) ->  | U22: =+IF($T$7="A","",IF($T$7="B","",IF($T$7="C","",IF($T$7="D","",IF($T$7="E",AO21,IF($T$7="F",AR21,IF($T$7="G",AU21,IF($T$7="H",AX21)))))))) ->  | W22: =IF(Q22="",,V22*T22) -> 0 | X22: =+IF(Q22="","",W22/$W$28) ->  | Z22: ACCESORIAS | AQ22: 412602.97 | AR22: 0.07600216104 | AT22: 624029.11 | AU22: 0.07362532284 | AW22: 915242.69 | AX22: 0.07054944493 | BB22: 0 | BC22: 0 | BD22: 0 | BE22: 0 | BF22: 0 | BG22: 0
B23: Otro | K23: OTRO | L23: 1.03 | M23: 1 | P23: ACCESORIAS | Q23: =+IF($T$7="A","",IF($T$7="B","",IF($T$7="C","",IF($T$7="D","",IF($T$7="E",1,IF($T$7="F",1,IF($T$7="G",1,IF($T$7="H",1)))))))) ->  | S23: Accesorias | T23: =+IF($T$7="E",U23*$X$5,IF($T$7="F",U23*$X$5,IF($T$7="G",U23*$X$5,IF($T$7="H",U23*$X$5,IF($T$7="A","",IF($T$7="B","",IF($T$7="C","",IF($T$7="D","")))))))) ->  | U23: =+IF($T$7="A","",IF($T$7="B","",IF($T$7="C","",IF($T$7="D","",IF($T$7="E",AO22,IF($T$7="F",AR22,IF($T$7="G",AU22,IF($T$7="H",AX22)))))))) ->  | W23: =IF(Q23="",,V23*T23) -> 0 | X23: =+IF(Q23="","",W23/$W$28) ->  | BB23: 0 | BC23: 0 | BD23: 0 | BE23: 0 | BF23: 0 | BG23: 0
B24: Acabados interiores | K24: Muros (ALBAÑILERIA) | M24: FRR | N24: =+M26*M27*M28*M29*M30*M31*M70*M71*M72*M73 -> 1 | S24: SUB TOTAL | W24: =+SUM(W9:W23) ->  | AA24: 10716.8795 | AC24: Unitario Modelo A | AE24: 15146.99917 | AF24: Unitario Modelo B | AH24: 18953.19912 | AI24: Unitario Modelo C | AK24: 19147.64308 | AL24: Unitario Modelo D | AN24: 13040.56005 | AO24: Unitario Modelo E | AQ24: 18096.10693 | AR24: Unitario Modelo F | AT24: 18959.6909 | AU24: Unitario Modelo G | AW24: 18759.13471 | AX24: Unitario Modelo H
C25: NO APLICA | D25: Económica | E25: Media | F25: Alta | G25: Residencial | H25: Plus | I25: FRR | L25: PARAMETRO | M25: SI | S25: UNITARIO | W25: =W24/X7 ->  | AA25: =SUM(AA8:AA20) -> 428675.18 | AB25: =SUM(AB8:AB20) -> 10216.2817 | AC25: =SUM(AC8:AC20) -> 1 | AE25: =SUM(AE8:AE20) -> 907305.25 | AF25: =SUM(AF8:AF20) -> 1 | AH25: =SUM(AH8:AH20) -> 1516255.93 | AI25: =SUM(AI8:AI20) -> 1 | AK25: =SUM(AK8:AK20) -> 2297717.17 | AL25: =SUM(AL8:AL20) -> 1 | AN25: =SUM(AN8:AN22) -> 2618805.27 | AO25: =SUM(AO8:AO22) -> 1 | AQ25: =SUM(AQ8:AQ22) -> 5428832.08 | AR25: =SUM(AR8:AR22) -> 1 | AT25: =SUM(AT8:AT22) -> 8475740.22 | AU25: =SUM(AU8:AU22) -> 1 | AW25: =SUM(AW8:AW22) -> 12973067.2 | AX25: =SUM(AX8:AX22) -> 1 | BB25: =SUM(BB11:BG23) -> 0
B26: PARAMETRO | C26: 1 | D26: 0.95 | E26: 1 | F26: 1.1 | G26: 1.15 | H26: 1.2 | I26: =PRODUCT(I27,I28,I29,I30,I31,I32,I33) -> 0 | K26: Tablaroca/Triplay | L26: 1.02 | M26: 1 | P26: Espacios | Q26: TT | S26: OBRAS COMPLEMENTARIAS | V26: =+M33 -> 1.05 | W26: =IF(V26=1,0,V26*$W$25) ->  | X26: =+W26/$W$28 ->  | AA26: MOD 1002 | AE26: MOD 1015 | AH26: MOD 1025 | AK26: MOD 1045 | AN26: MOD 1060 | AQ26: MOD 1070 | AT26: MOD 1085 | AW26: MOD 1100
B27: Pisos | I27: =IF(SUM(C27:H27)=0,"",SUM(C27:H27)) ->  | K27: Ladrillo/block | L27: 1 | M27: 1 | P27: Cocina | Q27: 4 | S27: INSTALACIONES ESPECIALES | V27: =+M50 -> 1.0506 | W27: =IF(V27=1,0,V27*W25) ->  | AA27: 41.96 | AE27: 59.9 | AH27: 83.22 | AK27: 120 | AN27: 200.82 | AQ27: 300 | AT27: 450 | AW27: 700 | BB27: =IF(C27<>"",1,0) -> 0 | BC27: =IF(D27<>"",1,0) -> 0 | BD27: =IF(E27<>"",1,0) -> 0 | BE27: =IF(F27<>"",1,0) -> 0 | BF27: =IF(G27<>"",1,0) -> 0 | BG27: =IF(H27<>"",1,0) -> 0
B28: Azulejos | K28: Marcos rígidos de acero | L28: 1.03 | M28: 1 | P28: Sala | Q28: 2 | W28: =W24+W26+W27 ->  | X28: =+SUM(X9:X27) ->  | BB28: 0 | BC28: 0 | BD28: 0 | BE28: 0 | BF28: 0 | BG28: 0
B29: Plafones | K29: MIXTO | L29: 1.04 | M29: 1 | P29: Comedor | Q29: 1 | W29: =+W28/X7 ->  | BB29: 0 | BC29: 0 | BD29: 0 | BE29: 0 | BF29: 0 | BG29: 0
B30: Recubrimientos en muros | K30: DESCONOCIDO | L30: 1 | M30: 1 | P30: Baños | Q30: 2 | V30: Factor IC | W30: =+C6 -> 0.987 | BB30: 0 | BC30: 0 | BD30: 0 | BE30: 0 | BF30: 0 | BG30: 0
B31: Muebles sanitarios (WC, Lavabo) | K31: OTRO | L31: 1.03 | M31: 1 | P31: Recamaras | Q31: 1 | V31: Unitario Final | W31: =W29*W30 ->  | BB31: 0 | BC31: 0 | BD31: 0 | BE31: 0 | BF31: 0 | BG31: 0
B32: Tinas/Jacuzzi | P32: Vestidores | Q32: 3 | V32: Presupuesto Final | W32: =W31*X7 ->  | BB32: 0 | BC32: 0 | BD32: 0 | BE32: 0 | BF32: 0 | BG32: 0
B33: Otro | K33: OBRAS COMPLEMENTARIAS | L33: PARAMETROS | M33: =M34*M35*M36*M37*M38*M39*M40*M41*M42*M43*M44*M45*M46*M47*M48 -> 1.05 | P33: Estacionamientos | Q33: 2 | BB33: 0 | BC33: 0 | BD33: 0 | BE33: 0 | BF33: 0 | BG33: 0
K34: TERRAZA | L34: 1.03 | M34: 1 | P34: CuartoServicio | Q34: 1
B35: ACABADOS EXTERIORES | C35: NO APLICA | D35: Económica | E35: Media | F35: Alta | G35: Residencial | H35: Plus | I35: FRR | K35: ROOF GARDEN | L35: 1.05 | M35: 1.05 | P35: AccesoInd | Q35: 2
E36: 1.02 | I36: =IF(SUM(C36:H36)=0,"",SUM(C36:H36)) -> 1.02 | K36: PALAPAS | L36: 1.02 | M36: 1 | BB36: =IF(C36<>"",1,0) -> 0 | BC36: 0 | BD36: 1 | BE36: 0 | BF36: 0 | BG36: 0
K37: CUBIERTAS (PERGOLADOS, POLICARBONATO, DOMOS) | L37: 1.01 | M37: 1 | BB37: =SUM(BB27:BG36) -> 1
B38: Instalaciones | C38: NO APLICA | D38: Económica | E38: Media | F38: Alta | G38: Residencial | H38: Plus | I38: FRR | K38: BODEGA | L38: 1.01 | M38: 1
B39: Instalacion Electricas | I39: =IF(SUM(C39:H39)=0,"",SUM(C39:H39)) ->  | K39: BARDAS PERIMETRALES | L39: 1.01 | M39: 1 | BB39: =IF(C39<>"",1,0) -> 0 | BC39: 0 | BD39: 0 | BE39: 0 | BF39: 0 | BG39: 0
B40: Instalacion Sanitarias | K40: AREAS DEPORTIVAS | L40: 1.05 | M40: 1 | BB40: =IF(C40<>"",1,0) -> 0 | BC40: =IF(D40<>"",1,0) -> 0 | BD40: =IF(E40<>"",1,0) -> 0 | BE40: =IF(F40<>"",1,0) -> 0 | BF40: =IF(G40<>"",1,0) -> 0 | BG40: =IF(H40<>"",1,0) -> 0
B41: Instalacion Hidraulicas | K41: AREAS ADICIONALES | L41: 1.02 | M41: 1 | BB41: 0 | BC41: 0 | BD41: 0 | BE41: 0 | BF41: 0 | BG41: 0
B42: instalacion GAS | K42: SALA DE UM | L42: 1.02 | M42: 1 | BB42: 0 | BC42: 0 | BD42: 0 | BE42: 0 | BF42: 0 | BG42: 0
K43: SALA DE TV | L43: 1.02 | M43: 1
B44: ACCESOS | C44: NO APLICA | D44: Económica | E44: Media | F44: Alta | G44: Residencial | H44: Plus | I44: FRR | K44: GIMNASIO | L44: 1.02 | M44: 1
I45: =IF(SUM(C45:H45)=0,"",SUM(C45:H45)) ->  | K45: ESTUDIO | L45: 1.01 | M45: 1 | BB45: =IF(C45<>"",1,0) -> 0 | BC45: =IF(D45<>"",1,0) -> 0 | BD45: =IF(E45<>"",1,0) -> 0 | BE45: =IF(F45<>"",1,0) -> 0 | BF45: =IF(G45<>"",1,0) -> 0 | BG45: =IF(H45<>"",1,0) -> 0
K46: ALCOBA | L46: 1.01 | M46: 1
B47: MOBILIARIO FIJO | C47: NO APLICA | D47: Económica | E47: Media | F47: Alta | G47: Residencial | H47: Plus | I47: FRR | K47: ALBERCA | L47: 1.06 | M47: 1
I48: =IF(SUM(C48:H48)=0,"",SUM(C48:H48)) ->  | K48: ELEVADORES | L48: 1.05 | M48: 1 | BB48: =IF(C48<>"",1,0) -> 0 | BC48: =IF(D48<>"",1,0) -> 0 | BD48: =IF(E48<>"",1,0) -> 0 | BE48: =IF(F48<>"",1,0) -> 0 | BF48: =IF(G48<>"",1,0) -> 0 | BG48: =IF(H48<>"",1,0) -> 0
BB49: =SUM(BB39:BG48) -> 0
K50: Instalaciones Especiales | L50: PARAMETROS | M50: =M51*M52*M53*M54*M55*M56*M57*M58*M59*M60 -> 1.0506
K51: AIRE ACONDICIONADO | L51: 1.02 | M51: 1
B52: Comentarios cliente: | K52: SISTEMAS INTELIGENTES | L52: 1.04 | M52: 1
K53: BIODIGESTORES | L53: 1.02 | M53: 1
K54: CALEFACCION | L54: 1.02 | M54: 1.02
K55: CIRCUITO CERRADO DE CCTV | L55: 1.03 | M55: 1.03
K56: HIDRONEUMATICO | L56: 1.02 | M56: 1
K57: SISTEMAS ECOLOGICOS | L57: 1.03 | M57: 1
K58: PANELES SOLARES | L58: 1.03 | M58: 1
K59: SISTEMA DE CAPTACION PLUVIAL | L59: 1.02 | M59: 1
K60: OTROS | L60: 1.02 | M60: 1
B62: Partida | C62: Calidad | K62: Losas de entrepiso (ESTRUCTURA DE CONCRETO) | M62: FRR
B63: Puertas | C63: No aplica | L63: PARAMETRO | M63: SI
B64: Clósets | C64: Económica | K64: Lamina | L64: 1.02 | M64: 1
B65: Cocina integral | C65: Media | K65: Madera | L65: 1 | M65: 1
B66: Otro | C66: Alta | K66: Cristal | L66: 1.03 | M66: 1
K67: Caseton | L67: 1.04 | M67: 1
B68: Cristales | C68: Residencial | K68: Muros (ALBAÑILERIA) | M68: FRR
B69: Cancelería | C69: Plus | L69: PARAMETRO | M69: SI
B70: Portones/rejas | C70: Residencial | K70: Cristal | L70: 1.02 | M70: 1
B71: Protecciones | C71: Alta | K71: Madera | L71: 1 | M71: 1
B72: Barandales | C72: Media | K72: Adobe | L72: 1.03 | M72: 1
B73: Otro | C73: Económica | K73: Concreto | L73: 1.04 | M73: 1
M74: 1
B75: Pisos | C75: No aplica
B76: Azulejos | C76: Económica
B77: Plafones | C77: Media
B78: Recubrimientos en muros | C78: Alta
B79: Muebles sanitarios (WC, Lavabo) | C79: Residencial
B80: Tinas/Jacuzzi | C80: Plus
B81: Otro | C81: Residencial
B83: Acabados exteriores | C83: Completo
B85: Instalacion Electricas | C85: Completo
B86: Instalacion Sanitarias | C86: Completo
B87: Instalacion Hidraulicas | C87: Completo
B88: instalacion GAS | C88: Completo
B90: Cimentación | C90: Desconocido
B91: Losas de Entrepiso (Estructura de Concreto) | C91: Vigueta y Bovedilla
B92: Muros (Albañilería) | C92: Concreto
B94: Otro Cimentación
B95: Otro Losas de Entrepiso (Estructura de Concreto)
B96: Otro Muros (Albañilería)

Sheet Edos_Mpios (hidden)
A1: Estado | B1: Municipio | C1: FIC | H1: Aguascalientes
A2: Yucatan | B2: Abala | C2: 1 | H2: Baja California
A3: Coahuila De Zaragoza | B3: Abasolo | C3: 1 | H3: Baja California Sur
A4: Guanajuato | B4: Abasolo | C4: 1 | H4: Campeche
A5: Nuevo Leon | B5: Abasolo | C5: 1 | H5: Cdmx
A6: Tamaulipas | B6: Abasolo | C6: 1 | H6: Chiapas
A7: Oaxaca | B7: Abejones | C7: 1 | H7: Chihuahua
A8: Chiapas | B8: Acacoyagua | C8: 1 | H8: Coahuila De Zaragoza
A9: Puebla | B9: Acajete | C9: 1 | H9: Colima
A10: Veracruz De Ignacio De La Llave | B10: Acajete | C10: 1 | H10: Durango
A11: Chiapas | B11: Acala | C11: 1 | H11: Guanajuato
A12: Guanajuato | B12: Acambaro | C12: 1 | H12: Guerrero
A13: Mexico | B13: Acambay De Ruiz Castañeda | C13: 1 | H13: Hidalgo
A14: Yucatan | B14: Acanceh | C14: 1 | H14: Jalisco
A15: Chiapas | B15: Acapetahua | C15: 1 | H15: Mexico
A16: Nayarit | B16: Acaponeta | C16: 1 | H16: Michoacan De Ocampo
A17: Guerrero | B17: Acapulco De Juarez | C17: 1.036 | H17: Morelos
A18: Puebla | B18: Acateno | C18: 1 | H18: Nayarit
A19: Guerrero | B19: Acatepec | C19: 1 | H19: Nuevo Leon
A20: Jalisco | B20: Acatic | C20: 1 | H20: Oaxaca
A21: Hidalgo | B21: Acatlan | C21: 1 | H21: Puebla
A22: Puebla | B22: Acatlan | C22: 1 | H22: Queretaro
A23: Veracruz De Ignacio De La Llave | B23: Acatlan | C23: 1 | H23: Quintana Roo
A24: Jalisco | B24: Acatlan De Juarez | C24: 1 | H24: San Luis Potosi
A25: Oaxaca | B25: Acatlan De Perez Figueroa | C25: 1 | H25: Sinaloa
A26: Puebla | B26: Acatzingo | C26: 1 | H26: Sonora
A27: Hidalgo | B27: Acaxochitlan | C27: 1 | H27: Tabasco
A28: Veracruz De Ignacio De La Llave | B28: Acayucan | C28: 1 | H28: Tamaulipas
A29: Mexico | B29: Acolman | C29: 1 | H29: Tlaxcala
A30: Sonora | B30: Aconchi | C30: 1 | H30: Veracruz De Ignacio De La Llave
A31: Puebla | B31: Acteopan | C31: 1 | H31: Yucatan
A32: Hidalgo | B32: Actopan | C32: 1 | H32: Zacatecas
A33: Veracruz De Ignacio De La Llave | B33: Actopan | C33: 1
A34: Tlaxcala | B34: Acuamanala De Miguel Hidalgo | C34: 1
A35: Michoacan De Ocampo | B35: Acuitzio | C35: 1
A36: Veracruz De Ignacio De La Llave | B36: Acula | C36: 1
A37: Mexico | B37: Aculco | C37: 1
A38: Veracruz De Ignacio De La Llave | B38: Acultzingo | C38: 1
A39: Coahuila De Zaragoza | B39: Ciudad Acuña | C39: 0.982
A40: Hidalgo | B40: Agua Blanca De Iturbide | C40: 1
A41: Veracruz De Ignacio De La Llave | B41: Agua Dulce | C41: 1
A42: Sonora | B42: Agua Prieta | C42: 1.059
A43: Nuevo Leon | B43: Agualeguas | C43: 1
A44: Aguascalientes | B44: Aguascalientes | C44: 0.964
A45: Michoacan De Ocampo | B45: Aguililla | C45: 1
A46: Sinaloa | B46: Ahome | C46: 1
A47: Nayarit | B47: Ahuacatlan | C47: 1
A48: Puebla | B48: Ahuacatlan | C48: 1
A49: Guerrero | B49: Ahuacuotzingo | C49: 1
A50: San Luis Potosi | B50: Ahualulco | C50: 1
A51: Jalisco | B51: Ahualulco De Mercado | C51: 1
A52: Puebla | B52: Ahuatlan | C52: 1
A53: Puebla | B53: Ahuazotepec | C53: 1
A54: Puebla | B54: Ahuehuetitla | C54: 1
A55: Chihuahua | B55: Ahumada | C55: 1
A56: Hidalgo | B56: Ajacuba | C56: 1
A57: Puebla | B57: Ajalpan | C57: 1
A58: Guerrero | B58: Ajuchitlan Del Progreso | C58: 1
A59: Yucatan | B59: Akil | C59: 1
A60: Veracruz De Ignacio De La Llave | B60: Alamo Temapache | C60: 1
A61: Sonora | B61: Alamos | C61: 1
A62: San Luis Potosi | B62: Alaquines | C62: 1
A63: Puebla | B63: Albino Zertuche | C63: 1
A64: Guerrero | B64: Alcozauca De Guerrero | C64: 1
A65: Chiapas | B65: Aldama | C65: 1
A66: Chihuahua | B66: Aldama | C66: 1
A67: Tamaulipas | B67: Aldama | C67: 1
A68: Hidalgo | B68: Alfajayucan | C68: 1
A69: Puebla | B69: Aljojuca | C69: 1
A70: Chihuahua | B70: Allende | C70: 1
A71: Coahuila De Zaragoza | B71: Allende | C71: 1
A72: Nuevo Leon | B72: Allende | C72: 1
A73: Hidalgo | B73: Almoloya | C73: 1
A74: Mexico | B74: Almoloya De Alquisiras | C74: 1
A75: Mexico | B75: Almoloya De Juarez | C75: 1
A76: Mexico | B76: Almoloya Del Rio | C76: 1
A77: Veracruz De Ignacio De La Llave | B77: Alpatlahuac | C77: 1
A78: Guerrero | B78: Alpoyeca | C78: 1
A79: Tamaulipas | B79: Altamira | C79: 0.99
A80: Chiapas | B80: Altamirano | C80: 1
A81: Sonora | B81: Altar | C81: 1
A82: Puebla | B82: Altepexi | C82: 1
A83: Veracruz De Ignacio De La Llave | B83: Alto Lucero De Gutierrez Barrios | C83: 1
A84: Veracruz De Ignacio De La Llave | B84: Altotonga | C84: 1
A85: Tlaxcala | B85: Altzayanca | C85: 1
A86: Veracruz De Ignacio De La Llave | B86: Alvarado | C86: 1
A87: Cdmx | B87: Alvaro Obregon | C87: 1
A88: Michoacan De Ocampo | B88: Alvaro Obregon | C88: 1
A89: Jalisco | B89: Amacueca | C89: 1
A90: Morelos | B90: Amacuzac | C90: 1
A91: Mexico | B91: Amanalco | C91: 1
A92: Chiapas | B92: Amatan | C92: 1
A93: Chiapas | B93: Amatenango De La Frontera | C93: 1
A94: Chiapas | B94: Amatenango Del Valle | C94: 1
A95: Mexico | B95: Amatepec | C95: 1
A96: Jalisco | B96: Amatitan | C96: 1
A97: Veracruz De Ignacio De La Llave | B97: Amatitlan | C97: 1
A98: Nayarit | B98: Amatlan De Cañas | C98: 1
A99: Veracruz De Ignacio De La Llave | B99: Amatlan De Los Reyes | C99: 1
A100: Tlaxcala | B100: Amaxac De Guerrero | C100: 1
A101: Queretaro | B101: Amealco De Bonfil | C101: 1
A102: Jalisco | B102: Ameca | C102: 1
A103: Mexico | B103: Amecameca | C103: 0.913
A104: Puebla | B104: Amixtlan | C104: 1
A105: Puebla | B105: Amozoc | C105: 1
A106: Nuevo Leon | B106: Anahuac | C106: 1
A107: Michoacan De Ocampo | B107: Angamacutiro | C107: 1
A108: Michoacan De Ocampo | B108: Angangueo | C108: 1
A109: Chiapas | B109: Angel Albino Corzo | C109: 1
A110: Veracruz De Ignacio De La Llave | B110: Angel R. Cabada | C110: 1
A111: Sinaloa | B111: Angostura | C111: 1
A112: Oaxaca | B112: Animas Trujano | C112: 1
A113: Tamaulipas | B113: Antiguo Morelos | C113: 1
A114: Hidalgo | B114: Apan | C114: 1
A115: Guanajuato | B115: Apaseo El Alto | C115: 1
A116: Guanajuato | B116: Apaseo El Grande | C116: 1
A117: Michoacan De Ocampo | B117: Apatzingan | C117: 1
A118: Mexico | B118: Apaxco | C118: 1
A119: Guerrero | B119: Apaxtla | C119: 1
A120: Veracruz De Ignacio De La Llave | B120: Apazapan | C120: 1
A121: Tlaxcala | B121: Apetatitlan De Antonio Carvajal | C121: 1
A122: Tlaxcala | B122: Apizaco | C122: 0.864
A123: Nuevo Leon | B123: Apodaca | C123: 1
A124: Michoacan De Ocampo | B124: Aporo | C124: 1
A125: Zacatecas | B125: Apozol | C125: 1
A126: Zacatecas | B126: Apulco | C126: 1
A127: Michoacan De Ocampo | B127: Aquila | C127: 1
A128: Veracruz De Ignacio De La Llave | B128: Aquila | C128: 1
A129: Chihuahua | B129: Aquiles Serdan | C129: 1
A130: San Luis Potosi | B130: Aquismon | C130: 1
A131: Puebla | B131: Aquixtla | C131: 1
A132: Nuevo Leon | B132: Aramberri | C132: 1
A133: Jalisco | B133: Arandas | C133: 1
A134: Guerrero | B134: Arcelia | C134: 1
A135: Michoacan De Ocampo | B135: Ario | C135: 1
A136: Sonora | B136: Arivechi | C136: 1
A137: Sonora | B137: Arizpe | C137: 1
A138: San Luis Potosi | B138: Armadillo De Los Infante | C138: 1
A139: Colima | B139: Armeria | C139: 1
A140: Chiapas | B140: Arriaga | C140: 0.873
A141: Queretaro | B141: Arroyo Seco | C141: 1
A142: Coahuila De Zaragoza | B142: Arteaga | C142: 1
A143: Michoacan De Ocampo | B143: Arteaga | C143: 1
A144: Chihuahua | B144: Ascension | C144: 1
A145: Aguascalientes | B145: Asientos | C145: 1
A146: Veracruz De Ignacio De La Llave | B146: Astacinga | C146: 1
A147: Oaxaca | B147: Asuncion Cacalotepec | C147: 1
A148: Oaxaca | B148: Asuncion Cuyotepeji | C148: 1
A149: Oaxaca | B149: Asuncion Ixtaltepec | C149: 1
A150: Oaxaca | B150: Asuncion Nochixtlan | C150: 1
A151: Oaxaca | B151: Asuncion Ocotlan | C151: 1
A152: Oaxaca | B152: Asuncion Tlacolulita | C152: 1
A153: Guanajuato | B153: Atarjea | C153: 1
A154: Jalisco | B154: Atemajac De Brizuela | C154: 1
A155: Puebla | B155: Atempan | C155: 1
A156: Guerrero | B156: Atenango Del Rio | C156: 1
A157: Mexico | B157: Atenco | C157: 1
A158: Jalisco | B158: Atengo | C158: 1
A159: Jalisco | B159: Atenguillo | C159: 1
A160: Puebla | B160: Atexcal | C160: 1
A161: Sonora | B161: Atil | C161: 1
A162: Hidalgo | B162: Atitalaquia | C162: 1
A163: Mexico | B163: Atizapan | C163: 1
A164: Mexico | B164: Atizapan De Zaragoza | C164: 1
A165: Mexico | B165: Atlacomulco | C165: 1
A166: Veracruz De Ignacio De La Llave | B166: Atlahuilco | C166: 1
A167: Guerrero | B167: Atlamajalcingo Del Monte | C167: 1
A168: Tlaxcala | B168: Atlangatepec | C168: 1
A169: Hidalgo | B169: Atlapexco | C169: 1
A170: Morelos | B170: Atlatlahucan | C170: 1
A171: Mexico | B171: Atlautla | C171: 1
A172: Puebla | B172: Atlequizayan | C172: 1
A173: Puebla | B173: Atlixco | C173: 1
A174: Guerrero | B174: Atlixtac | C174: 1
A175: Zacatecas | B175: Atolinga | C175: 1
A176: Hidalgo | B176: Atotonilco De Tula | C176: 1
A177: Jalisco | B177: Atotonilco El Alto | C177: 1
A178: Hidalgo | B178: Atotonilco El Grande | C178: 1
A179: Jalisco | B179: Atoyac | C179: 1
A180: Veracruz De Ignacio De La Llave | B180: Atoyac | C180: 1
A181: Guerrero | B181: Atoyac De Alvarez | C181: 0.933
A182: Puebla | B182: Atoyatempan | C182: 1
A183: Veracruz De Ignacio De La Llave | B183: Atzacan | C183: 1
A184: Puebla | B184: Atzala | C184: 1
A185: Veracruz De Ignacio De La Llave | B185: Atzalan | C185: 1
A186: Puebla | B186: Atzitzihuacan | C186: 1
A187: Puebla | B187: Atzitzintla | C187: 1
A188: Jalisco | B188: Autlan De Navarro | C188: 1
A189: Mexico | B189: Axapusco | C189: 1
A190: Morelos | B190: Axochiapan | C190: 1
A191: San Luis Potosi | B191: Axtla De Terrazas | C191: 1
A192: Puebla | B192: Axutla | C192: 1
A193: Veracruz De Ignacio De La Llave | B193: Ayahualulco | C193: 1
A194: Morelos | B194: Ayala | C194: 1
A195: Mexico | B195: Ayapango | C195: 1
A196: Oaxaca | B196: Ayoquezco De Aldama | C196: 1
A197: Jalisco | B197: Ayotlan | C197: 1
A198: Puebla | B198: Ayotoxco De Guerrero | C198: 1
A199: Oaxaca | B199: Ayotzintepec | C199: 1
A200: Jalisco | B200: Ayutla | C200: 1
... 2278 more rows

Sheet Filtro_Edo_Mpios (hidden)
A1: Estado | C1: Estado | D1: Municipio | E1: FIC | H1: Municipio | J1: Municipio | K1: FIC
A2: Campeche | C2: Campeche | D2: Calakmul | E2: 1 | H2: Campeche | J2: Campeche | K2: 0.987
C3: Campeche | D3: Calkini | E3: 1
C4: Campeche | D4: Campeche | E4: 0.987
C5: Campeche | D5: Candelaria | E5: 1
C6: Campeche | D6: Carmen | E6: 1
C7: Campeche | D7: Champoton | E7: 1
C8: Campeche | D8: Escarcega | E8: 0.94
C9: Campeche | D9: Hecelchakan | E9: 1
C10: Campeche | D10: Hopelchen | E10: 1
C11: Campeche | D11: Palizada | E11: 1
C12: Campeche | D12: Tenabo | E12: 1

Sheet Diagrama (hidden)
C1: Superficie (m2): | D1: =+RegistroInf!C3 -> 12 | AS1: Programa de Obra
C2: Semanas aprox.: | D2: 96
E3: Mes 1 | I3: Mes 2 | M3: Mes 3 | Q3: Mes 4 | U3: Mes 5 | Y3: Mes 6 | AC3: Mes 7 | AG3: Mes 8 | AK3: Mes 9 | AO3: Mes 10 | AS3: Mes 11 | AW3: Mes 12 | BA3: Mes 13 | BE3: Mes 14 | BI3: Mes 15 | BM3: Mes 16 | BQ3: Mes 17 | BU3: Mes 18 | BY3: Mes 19 | CC3: Mes 20 | CG3: Mes 21 | CK3: Mes 22 | CO3: Mes 23 | CS3: Mes 24
B4: Vivienda Alta Residencial 4 | C4: Concepto | D4: % | E4: S1 | F4: S2 | G4: S3 | H4: S4 | I4: S5 | J4: S6 | K4: S7 | L4: S8 | M4: S9 | N4: S10 | O4: S11 | P4: S12 | Q4: S13 | R4: S14 | S4: S15 | T4: S16 | U4: S17 | V4: S18 | W4: S19 | X4: S20 | Y4: S21 | Z4: S22 | AA4: S23 | AB4: S24 | AC4: S25 | AD4: S26 | AE4: S27 | AF4: S28 | AG4: S29 | AH4: S30 | AI4: S31 | AJ4: S32 | AK4: S33 | AL4: S34 | AM4: S35 | AN4: S36 | AO4: S37 | AP4: S38 | AQ4: S39 | AR4: S40 | AS4: S41 | AT4: S42 | AU4: S43 | AV4: S44 | AW4: S45 | AX4: S46 | AY4: S47 | AZ4: S48 | BA4: S49 | BB4: S50 | BC4: S51 | BD4: S52 | BE4: S53 | BF4: S54 | BG4: S55 | BH4: S56 | BI4: S57 | BJ4: S58 | BK4: S59 | BL4: S60 | BM4: S61 | BN4: S62 | BO4: S63 | BP4: S64 | BQ4: S65 | BR4: S66 | BS4: S67 | BT4: S68 | BU4: S69 | BV4: S70 | BW4: S71 | BX4: S72 | BY4: S73 | BZ4: S74 | CA4: S75 | CB4: S76 | CC4: S77 | CD4: S78 | CE4: S79 | CF4: S80 | CG4: S81 | CH4: S82 | CI4: S83 | CJ4: S84 | CK4: S85 | CL4: S86 | CM4: S87 | CN4: S88 | CO4: S89 | CP4: S90 | CQ4: S91 | CR4: S92 | CS4: S93 | CT4: S94 | CU4: S95 | CV4: S96
C5: Cimentacion | D5: 0.08908656409 | E5: 1 | F5: 1 | G5: 1 | H5: 1 | I5: 1 | J5: 1 | K5: 1 | L5: 1 | M5: 1
C6: Estructura De Concreto | D6: 0.1640539379 | M6: 0 | N6: 1 | O6: 1 | P6: 1 | Q6: 1 | R6: 1 | S6: 1 | T6: 1 | U6: 1 | V6: 1 | W6: 1 | X6: 1 | Y6: 1 | Z6: 1 | AA6: 1 | AB6: 1 | AC6: 1
C7: Albañileria | D7: 0.08709832219 | AC7: 0 | AD7: 1 | AE7: 1 | AF7: 1 | AG7: 1 | AH7: 1 | AI7: 1 | AJ7: 1 | AK7: 1
C8: Instalacion Hidraulica | D8: 0.01194068983 | AK8: 0 | AL8: 1
C9: Instalacion Sanitaria | D9: 0.009974931625 | AL9: 0 | AM9: 1
C10: Instalacion Electrica | D10: 0.01189904848 | AM10: 0 | AN10: 1
C11: Instalacion De Gas | D11: 0.001040033982 | AN11: 0 | AO11: 1
C12: Acabados Interiores | D12: 0.3433338507 | AO12: 0 | AP12: 1 | AQ12: 1 | AR12: 1 | AS12: 1 | AT12: 1 | AU12: 1 | AV12: 1 | AW12: 1 | AX12: 1 | AY12: 1 | AZ12: 1 | BA12: 1 | BB12: 1 | BC12: 1 | BD12: 1 | BE12: 1 | BF12: 1 | BG12: 1 | BH12: 1 | BI12: 1 | BJ12: 1 | BK12: 1 | BL12: 1 | BM12: 1 | BN12: 1 | BO12: 1 | BP12: 1 | BQ12: 1 | BR12: 1 | BS12: 1 | BT12: 1 | BU12: 1 | BV12: 1
C13: Acabados Exteriores | D13: 0.08313533279 | BV13: 0 | BW13: 1 | BX13: 1 | BY13: 1 | BZ13: 1 | CA13: 1 | CB13: 1 | CC13: 1 | CD13: 1
C14: Accesos | D14: 0.02069961495 | CD14: 0 | CE14: 1 | CF14: 1
C15: Canceleria | D15: 0.03414159225 | CF15: 0 | CG15: 1 | CH15: 1 | CI15: 1
C16: Mobiliario Fijo | D16: 0.05777093406 | CI16: 0 | CJ16: 1 | CK16: 1 | CL16: 1 | CM16: 1 | CN16: 1 | CO16: 1
C17: Guarda | D17: 0.006171816976 | CO17: 0 | CP17: 1
C18: =+IF(D18="","","Equipo") -> Equipo | D18: 0.02259539885 | CP18: 0 | CQ18: 1 | CR18: 1
C19: =+IF(D19="","","Accesorias") -> Accesorias | D19: 0.05422291153 | CR19: 0 | CS19: 1 | CT19: 1 | CU19: 1 | CV19: 1
CW20: 0
E22: Mes 13 | I22: Mes 14 | M22: Mes 15 | Q22: Mes 16 | U22: Mes 17 | Y22: Mes 18 | AC22: Mes 19 | AG22: Mes 20 | AK22: Mes 21 | AO22: Mes 22 | AS22: Mes 23 | AW22: Mes 24
B23: =+B4 -> Vivienda Alta Residencial 4 | C23: =+C4 -> Concepto | D23: =+D4 -> % | E23: S49 | F23: S50 | G23: S51 | H23: S52 | I23: S53 | J23: S54 | K23: S55 | L23: S56 | M23: S57 | N23: S58 | O23: S59 | P23: S60 | Q23: S61 | R23: S62 | S23: S63 | T23: S64 | U23: S65 | V23: S66 | W23: S67 | X23: S68 | Y23: S69 | Z23: S70 | AA23: S71 | AB23: S72 | AC23: S73 | AD23: S74 | AE23: S75 | AF23: S76 | AG23: S77 | AH23: S78 | AI23: S79 | AJ23: S80 | AK23: S81 | AL23: S82 | AM23: S83 | AN23: S84 | AO23: S85 | AP23: S86 | AQ23: S87 | AR23: S88 | AS23: S89 | AT23: S90 | AU23: S91 | AV23: S92 | AW23: S93 | AX23: S94 | AY23: S95 | AZ23: S96
C24: =+C5 -> Cimentacion | D24: 0.08908656409
C25: Estructura De Concreto | D25: 0.1640539379
C26: Albañileria | D26: 0.08709832219
C27: Instalacion Hidraulica | D27: 0.01194068983
C28: Instalacion Sanitaria | D28: 0.009974931625
C29: Instalacion Electrica | D29: 0.01189904848
C30: Instalacion De Gas | D30: 0.001040033982
C31: Acabados Interiores | D31: 0.3433338507 | E31: 1 | F31: 1 | G31: 1 | H31: 1 | I31: 1 | J31: 1 | K31: 1 | L31: 1 | M31: 1 | N31: 1 | O31: 1 | P31: 1 | Q31: 1 | R31: 1 | S31: 1 | T31: 1 | U31: 1 | V31: 1 | W31: 1 | X31: 1 | Y31: 1 | Z31: 1
C32: Acabados Exteriores | D32: 0.08313533279 | Z32: 0 | AA32: 1 | AB32: 1 | AC32: 1 | AD32: 1 | AE32: 1 | AF32: 1 | AG32: 1 | AH32: 1
C33: Accesos | D33: 0.02069961495 | AH33: 0 | AI33: 1 | AJ33: 1
C34: Canceleria | D34: 0.03414159225 | AJ34: 0 | AK34: 1 | AL34: 1 | AM34: 1
C35: Mobiliario Fijo | D35: 0.05777093406 | AM35: 0 | AN35: 1 | AO35: 1 | AP35: 1 | AQ35: 1 | AR35: 1 | AS35: 1
C36: Guarda | D36: 0.006171816976 | AS36: 0 | AT36: 1
C37: Equipo | D37: =+D18 -> 0.02259539885 | AT37: 0 | AU37: 1 | AV37: 1
C38: Accesorias | D38: =+D19 -> 0.05422291153 | AV38: 0 | AW38: 1 | AX38: 1 | AY38: 1 | AZ38: 1
B41: Información general | E41: =TODAY() -> 2024-03-21
C43: Nombre del cliente: | E43: =+RegistroInf!C1 -> dsf
C45: Ubicación del Inmueble: | E45: =+RegistroInf!C2 -> dsfdsf
C48: Estado: | E48: =+RegistroInf!C4 -> Baja California Sur
C50: Ciudad o Municipio: | E50: =+RegistroInf!C5 -> La Paz

Sheet Solicitud (hidden)
B2: RESUMEN DEL CLIENTE
B5: Información general | J5: Elementos adicionales
J6: Obras complementarias | M6: Instalaciones especiales
C7: Nombre del cliente: | E7: =+RegistroInf!C1 -> dsf | K7: Terraza: | L7: =+IF(RegistroInf!M34=1,"","Si") ->  | N7: Aire acondicionado: | O7: =+IF(RegistroInf!M51=1,"","Si") -> 
K8: Roof garden: | L8: =+IF(RegistroInf!M35=1,"","Si") -> Si | N8: Sistemas inteligentes: | O8: =+IF(RegistroInf!M52=1,"","Si") -> 
C9: Ubicación del Inmueble: | E9: =+RegistroInf!C2 -> dsfdsf | K9: Palapas | L9: =+IF(RegistroInf!M36=1,"","Si") ->  | N9: Biodigestores: | O9: =+IF(RegistroInf!M53=1,"","Si") -> 
K10: Cubiertas: | L10: =+IF(RegistroInf!M37=1,"","Si") ->  | N10: Calefaccion: | O10: =+IF(RegistroInf!M54=1,"","Si") -> Si
K11: Bodega: | L11: =+IF(RegistroInf!M38=1,"","Si") ->  | N11: Circuito cerrado de CCTV: | O11: =+IF(RegistroInf!M55=1,"","Si") -> Si
C12: Estado: | E12: =+RegistroInf!C4 -> Baja California Sur | K12: Bardas perimetrales: | L12: =+IF(RegistroInf!M39=1,"","Si") ->  | N12: Hidroneumatico: | O12: =+IF(RegistroInf!M56=1,"","Si") -> 
K13: Áreas deportivas: | L13: =+IF(RegistroInf!M40=1,"","Si") ->  | N13: Sistemas ecologicos: | O13: =+IF(RegistroInf!M57=1,"","Si") -> 
C14: Ciudad o Municipio: | E14: =+RegistroInf!C5 -> La Paz | K14: Áreas adicionales: | L14: =+IF(RegistroInf!M41=1,"","Si") ->  | N14: Paneles solares: | O14: =+IF(RegistroInf!M58=1,"","Si") -> 
K15: Sala de Usos Multiples | L15: =+IF(RegistroInf!M42=1,"","Si") ->  | N15: Sistema de captacion pluvial: | O15: =+IF(RegistroInf!M59=1,"","Si") -> 
C16: Superficie Construida: | E16: =+RegistroInf!C3 -> 12 | F16: m2 | K16: Sala de TV: | L16: =+IF(RegistroInf!M43=1,"","Si") ->  | N16: Otros: | O16: =+IF(RegistroInf!M60=1,"","Si") -> 
K17: Gimnasio: | L17: =+IF(RegistroInf!M44=1,"","Si") -> 
C18: Modelo de Vivienda Seleccionada: | E18: =+Diagrama!B4 -> Vivienda Alta Residencial 4 | K18: Estudio: | L18: =+IF(RegistroInf!M45=1,"","Si") -> 
K19: Alcoba: | L19: =+IF(RegistroInf!M46=1,"","Si") -> 
C20: Uso General del Proyecto: | E20: Habitacional (Habitacional/Mixto) | K20: Alberca: | L20: =+IF(RegistroInf!M47=1,"","Si") -> 
K21: Elevadores: | L21: =+IF(RegistroInf!M48=1,"","Si") -> 
B23: Partidas | J23: Estructura
B24: Concepto | E24: Monto | F24: %
D25: Cimentación: | E25: =+RegistroInf!W9 -> 24890.37195 | F25: =+RegistroInf!X9 ->  | L25: Cocina: | M25: =+RegistroInf!Q27 -> 4
D26: Estructura De Concreto: | E26: =+RegistroInf!W10 -> 11962.16494 | F26: =+RegistroInf!X10 ->  | L26: Sala: | M26: =+RegistroInf!Q28 -> 2
D27: Albañileria: | E27: =+RegistroInf!W11 -> 29088.39466 | F27: =+RegistroInf!X11 ->  | L27: Comedor: | M27: =+RegistroInf!Q29 -> 1
D28: Instalacion Hidraulica: | E28: =+RegistroInf!W12 ->  | F28: =+RegistroInf!X12 ->  | L28: Baños: | M28: =+RegistroInf!Q30 -> 2
D29: Instalacion Sanitaria: | E29: =+RegistroInf!W13 ->  | F29: =+RegistroInf!X13 ->  | L29: Recámaras: | M29: =+RegistroInf!Q31 -> 1
D30: Instalacion Electrica: | E30: =+RegistroInf!W14 ->  | F30: =+RegistroInf!X14 ->  | L30: Vestidores: | M30: =+RegistroInf!Q32 -> 3
D31: Instalacion De Gas: | E31: =+RegistroInf!W15 ->  | F31: =+RegistroInf!X15 ->  | L31: Estacionamientos: | M31: =+RegistroInf!Q33 -> 2
D32: Acabados Interiores: | E32: =+RegistroInf!W16 -> 0 | F32: =+RegistroInf!X16 ->  | L32: Cuarto de Servicio: | M32: =+RegistroInf!Q34 -> 1
D33: Acabados Exteriores: | E33: =+RegistroInf!W17 -> 19433.41939 | F33: =+RegistroInf!X17 ->  | L33: Espacio con Acceso Independiente: | M33: =+RegistroInf!Q35 -> 2
D34: Accesos: | E34: =+RegistroInf!W18 ->  | F34: =+RegistroInf!X18 -> 
D35: Canceleria: | E35: =+RegistroInf!W19 -> 0 | F35: =+RegistroInf!X19 -> 
D36: Mobiliario Fijo: | E36: =+RegistroInf!W20 ->  | F36: =+RegistroInf!X20 ->  | J36: Resultado Estructura
D37: Guarda: | E37: =+RegistroInf!W21 -> 0 | F37: =+RegistroInf!X21 -> 
D38: =+IF(RegistroInf!Q22="","Equipo (N/A):","Equipo:") -> Equipo (N/A): | E38: =IF(RegistroInf!Q22="",0,RegistroInf!W22) -> 0 | F38: =IF(RegistroInf!Q22="",0,RegistroInf!X22) -> 0 | K38: Cimentación: | L38: =IF(RegistroInf!C90="","",RegistroInf!C90) -> Desconocido | M38: =IF(RegistroInf!C94="","",RegistroInf!C94) -> 
D39: =+IF(RegistroInf!Q23="","Accesorias (N/A):","Accesorias:") -> Accesorias (N/A): | E39: =IF(RegistroInf!Q23="",0,RegistroInf!W23) -> 0 | F39: =IF(RegistroInf!Q23="",0,RegistroInf!X23) -> 0
D40: =+IF(RegistroInf!V26=1,"Obras complementarias (N/A):","Obras complementarias:") -> Obras complementarias: | E40: =+IF(RegistroInf!V26=1,0,RegistroInf!W26) ->  | F40: =+IF(RegistroInf!V26=1,0,RegistroInf!X26) ->  | K40: Losas de Entrepiso: | L40: =IF(RegistroInf!C91="","",RegistroInf!C91) -> Vigueta y Bovedilla | M40: =IF(RegistroInf!C95="","",RegistroInf!C95) -> 
D41: =+IF(RegistroInf!V27=1,"Instalaciones especiales (N/A):","Instalaciones especiales:") -> Instalaciones especiales: | E41: =+IF(RegistroInf!V27=1,0,RegistroInf!W27) ->  | F41: =+IF(RegistroInf!V27=1,0,RegistroInf!X27) -> 
D42: Subtotal: | E42: =+SUM(E25:E41) ->  | K42: Muros: | L42: =IF(RegistroInf!C92="","",RegistroInf!C92) -> Concreto | M42: =IF(RegistroInf!C96="","",RegistroInf!C96) -> 
D43: FIC: | E43: =+RegistroInf!C6 -> 0.987
D44: Total Estimado: | E44: =+E42*E43 -> 
B47: Calidad seleccionada | J47: Comentarios
B48: Carpintería | E48: Calidad | J48: =IF(RegistroInf!C52="","Sin comentarios",RegistroInf!C52) -> Sin comentarios
D49: Puertas: | E49: =+RegistroInf!C63 -> No aplica
D50: Closets: | E50: =+RegistroInf!C64 -> Económica
D51: Cocina integral: | E51: =+RegistroInf!C65 -> Media | F51: Especificación de Otro
D52: Otro: | E52: =+RegistroInf!C66 -> Alta | F52: =IF(RegistroInf!C8="","Sin especificar en la solicitud",RegistroInf!C8) -> Sin especificar en la solicitud
B54: Ventanería | E54: Calidad | J54: Resultado evaluación
D55: Cristales: | E55: =+RegistroInf!C68 -> Residencial
D56: Canceleria: | E56: =+RegistroInf!C69 -> Plus | K56: Valor del terreno: | L56: =RegistroInf!F3*1 -> 12
D57: Portones / rejas: | E57: =+RegistroInf!C70 -> Residencial
D58: Protecciones: | E58: =+RegistroInf!C71 -> Alta | K58: Valor físico proyectado: | L58: =+RegistroInf!F4 -> 
D59: Barandales: | E59: =+RegistroInf!C72 -> Media | F59: Especificación de Otro
D60: Otro: | E60: =+RegistroInf!C73 -> Económica | F60: =IF(RegistroInf!C15="","Sin especificar en la solicitud",RegistroInf!C15) -> Sin especificar en la solicitud | K60: Costo del avalúo aproximado: | L60: =+RegistroInf!F5 -> 1900
B62: Acabados interiores | E62: Calidad | K62: Presupuesto estimado: | L62: =+RegistroInf!F1 -> 
D63: Pisos: | E63: =+RegistroInf!C75 -> No aplica
D64: Azulejos: | E64: =+RegistroInf!C76 -> Económica | K64: Valor unitario: | L64: =+RegistroInf!F2 -> 
D65: Plafones: | E65: =+RegistroInf!C77 -> Media
D66: Recubrimientos en muros: | E66: =+RegistroInf!C78 -> Alta
D67: Muebles sanitarios: | E67: =+RegistroInf!C79 -> Residencial
D68: Tinas / Jacuzzi | E68: =+RegistroInf!C80 -> Plus | F68: Especificación de Otro
D69: Otro: | E69: =+RegistroInf!C81 -> Residencial | F69: =IF(RegistroInf!C24="","Sin especificar en la solicitud",RegistroInf!C24) -> Sin especificar en la solicitud
J70: Firma | K70: Aplicativo V4 | M70: =+NOW() -> 2024-03-21T15:37:15.590
J75: =+E7 -> dsf
J77: Este Presupuesto y Programa de Obra tiene carácter informativo. Para mayor información consulta scotiabank.com.mx/hipotecario
B80: SBI-19032024-2
C115: Comentarios | L115: Firma

Sheet Presupuesto y Programa de Obra
A19: =+TODAY() -> 2024-03-21

Sheet Hoja1 (hidden)
B2: CIMENTACION | C2: 71750.2 | D2: =C2/C26 -> 1793.755 | E2: =C2/428675.18 -> 0.1673766137 | G2: CIMENTACION | H2: 124244.44 | I2: =H2/59.9 -> 2074.197663 | J2: =H2/907305.25 -> 0.1369378608 | L2: CIMENTACION | M2: 108223.3 | N2: =M2/83.22 -> 1300.44821 | O2: =M2/1516255.93 -> 0.07137535152 | R2: CIMENTACION | S2: 263426.07 | T2: =S2/122.24 -> 2154.990756 | U2: =S2/2297717.17 -> 0.1146468649 | X2: CIMENTACION | Y2: 350347.89 | Z2: =Y2/200.82 -> 1744.586645 | AA2: =Y2/2618805.27 -> 0.1337815736 | AD2: CIMENTACION | AE2: 657278.29 | AF2: =AE2/304.06 -> 2161.672992 | AG2: =AE2/5428832.08 -> 0.1210717665 | AJ2: CIMENTACION | AK2: 994135.47 | AL2: =AK2/447.04 -> 2223.817712 | AM2: =AK2/8475740.22 -> 0.1172918759 | AO2: CIMENTACION | AP2: 1345380.18 | AQ2: =AP2/691.56 -> 1945.427989 | AR2: =AP2/12973067.2 -> 0.1037056356
B3: ESTRUCTURA DE CONCRETO | C3: 40286.9 | D3: =C3/C26 -> 1007.1725 | E3: =C3/428675.18 -> 0.09398001536 | G3: ESTRUCTURA DE CONCRETO | H3: 59711.14 | I3: =H3/59.9 -> 996.8470785 | J3: =H3/907305.25 -> 0.06581152264 | L3: ESTRUCTURA DE CONCRETO | M3: 233573.24 | N3: =M3/83.22 -> 2806.695987 | O3: =M3/1516255.93 -> 0.1540460521 | R3: ESTRUCTURA DE CONCRETO | S3: 299291.09 | T3: =S3/122.24 -> 2448.389152 | U3: =S3/2297717.17 -> 0.1302558443 | X3: ESTRUCTURA DE CONCRETO | Y3: 491007.38 | Z3: =Y3/200.82 -> 2445.012349 | AA3: =Y3/2618805.27 -> 0.1874928944 | AD3: ESTRUCTURA DE CONCRETO | AE3: 869571 | AF3: =AE3/304.06 -> 2859.866474 | AG3: =AE3/5428832.08 -> 0.1601764407 | AJ3: ESTRUCTURA DE CONCRETO | AK3: 1329769.24 | AL3: =AK3/447.04 -> 2974.609073 | AM3: =AK3/8475740.22 -> 0.1568912219 | AO3: ESTRUCTURA DE CONCRETO | AP3: 2130519.88 | AQ3: =AP3/691.56 -> 3080.744809 | AR3: =AP3/12973067.2 -> 0.1642263813
B4: ALBAÑILERIA | C4: 33480.74 | D4: =C4/C26 -> 837.0185 | E4: 0.07810281902 | G4: ALBAÑILERIA | H4: 145199.57 | I4: 2424.032888 | J4: 0.1600338695 | L4: ALBAÑILERIA | M4: 200001.81 | N4: 2403.290195 | O4: 0.1319050472 | R4: ALBAÑILERIA | S4: 257338.18 | T4: 2105.187991 | U4: 0.1119973265 | X4: ALBAÑILERIA | Y4: 339527.79 | Z4: 1690.707051 | AA4: 0.1296498804 | AD4: ALBAÑILERIA | AE4: 420900 | AF4: 1384.266263 | AG4: 0.07753048792 | AJ4: ALBAÑILERIA | AK4: 886976.38 | AL4: 1984.109655 | AM4: 0.1046488397 | AO4: ALBAÑILERIA | AP4: 1323805.82 | AQ4: 1914.231332 | AR4: 0.1020426241
B5: INSTALACION HIDRAULICA | C5: 12017.84 | D5: =C5/C26 -> 300.446 | E5: 0.02803483981 | G5: INSTALACION HIDRAULICA | H5: 57207.5 | I5: 955.0500835 | J5: 0.06305209851 | L5: INSTALACION HIDRAULICA | M5: 67425.21 | N5: 810.204398 | O5: 0.0444682251 | R5: INSTALACION HIDRAULICA | S5: 73502.5 | T5: 601.2966296 | U5: 0.03198935925 | X5: INSTALACION HIDRAULICA | Y5: 120112.71 | Z5: 598.1112937 | AA5: 0.04586546063 | AD5: INSTALACION HIDRAULICA | AE5: 132331.09 | AF5: 435.2137407 | AG5: 0.02437560935 | AJ5: INSTALACION HIDRAULICA | AK5: 200140.78 | AL5: 447.7021743 | AM5: 0.02361336884 | AO5: INSTALACION HIDRAULICA | AP5: 188558.49 | AQ5: 272.6567326 | AR5: 0.01453461137
B6: INSTALACION SANITARIA | C6: 17780.32 | D6: =C6/C26 -> 444.508 | E6: 0.04147737221 | G6: INSTALACION SANITARIA | H6: 22006.55 | I6: 367.3881469 | J6: 0.02425484698 | L6: INSTALACION SANITARIA | M6: 33275.64 | N6: 399.851478 | O6: 0.02194592571 | R6: INSTALACION SANITARIA | S6: 48753.25 | T6: 398.8322153 | U6: 0.02121812494 | X6: INSTALACION SANITARIA | Y6: 50611.78 | Z6: 252.0255951 | AA6: 0.01932628614 | AD6: INSTALACION SANITARIA | AE6: 88755.68 | AF6: 291.9018615 | AG6: 0.01634894554 | AJ6: INSTALACION SANITARIA | AK6: 134236.04 | AL6: 300.2774696 | AM6: 0.01583767748 | AO6: INSTALACION SANITARIA | AP6: 167872.39 | AQ6: 242.7445052 | AR6: 0.01294006941
B7: INSTALACION ELECTRICA | C7: 15128.95 | D7: =C7/C26 -> 378.22375 | E7: 0.03529233953 | G7: INSTALACION ELECTRICA | H7: 54920.67 | I7: 916.872621 | J7: 0.06053163475 | L7: INSTALACION ELECTRICA | M7: 58899.08 | N7: 707.751502 | O7: 0.03884507809 | R7: INSTALACION ELECTRICA | S7: 82026.07 | T7: 671.0247873 | U7: 0.03569894114 | X7: INSTALACION ELECTRICA | Y7: 120475.4 | Z7: 599.9173389 | AA7: 0.04600395508 | AD7: INSTALACION ELECTRICA | AE7: 112056.31 | AF7: 368.533546 | AG7: 0.02064096077 | AJ7: INSTALACION ELECTRICA | AK7: 169476.45 | AL7: 379.1080217 | AM7: 0.0199954748 | AO7: INSTALACION ELECTRICA | AP7: 190217.84 | AQ7: 275.0561629 | AR7: 0.01466251867
B8: INSTALACION DE GAS | C8: 9292.02 | D8: =C8/C26 -> 232.3005 | E8: 0.0216761325 | G8: INSTALACION DE GAS | H8: 10471.24 | I8: 174.81202 | J8: 0.01154103319 | L8: INSTALACION DE GAS | M8: 10219.93 | N8: 122.8061764 | O8: 0.006740240746 | R8: INSTALACION DE GAS | S8: 10437.41 | T8: 85.38457134 | U8: 0.00454251295 | X8: INSTALACION DE GAS | Y8: 10219.93 | Z8: 50.89099691 | AA8: 0.003902516204 | AD8: INSTALACION DE GAS | AE8: 6789.61 | AF8: 22.32983622 | AG8: 0.001250657582 | AJ8: INSTALACION DE GAS | AK8: 10269.06 | AL8: 22.971233 | AM8: 0.001211582674 | AO8: INSTALACION DE GAS | AP8: 15403.6 | AQ8: 22.27370004 | AR8: 0.001187352209
B9: ACABADOS INTERIORES | C9: 60346.6 | D9: =C9/C26 -> 1508.665 | E9: 0.1407746537 | G9: ACABADOS INTERIORES | H9: 185374.31 | I9: 3094.729716 | J9: 0.2043130578 | L9: ACABADOS INTERIORES | M9: 422962.11 | N9: 5082.457462 | O9: 0.2789516609 | R9: ACABADOS INTERIORES | S9: 681161.75 | T9: 5572.33107 | U9: 0.2964515211 | X9: ACABADOS INTERIORES | Y9: 588102.41 | Z9: 2928.505179 | AA9: 0.224568973 | AD9: ACABADOS INTERIORES | AE9: 1167393.57 | AF9: 3839.352661 | AG9: 0.2150358591 | AJ9: ACABADOS INTERIORES | AK9: 1765591.51 | AL9: 3949.515726 | AM9: 0.2083111875 | AO9: ACABADOS INTERIORES | AP9: 3239955.4 | AQ9: 4684.995373 | AR9: 0.2497447481
B10: ACABADOS EXTERIORES | C10: 50946.32 | D10: =C10/C26 -> 1273.658 | E10: 0.1188459756 | G10: ACABADOS EXTERIORES | H10: 95103.09 | I10: 1587.697663 | J10: 0.1048192877 | L10: ACABADOS EXTERIORES | M10: 111272.51 | N10: 1337.08856 | O10: 0.07338636427 | R10: ACABADOS EXTERIORES | S10: 241113.46 | T10: 1972.459588 | U10: 0.1049360919 | X10: ACABADOS EXTERIORES | Y10: 240434.35 | Z10: 1197.262972 | AA10: 0.09181070191 | AD10: ACABADOS EXTERIORES | AE10: 604744.44 | AF10: 1988.898375 | AG10: 0.111394943 | AJ10: ACABADOS EXTERIORES | AK10: 914628.49 | AL10: 2045.965663 | AM10: 0.1079113406 | AO10: ACABADOS EXTERIORES | AP10: 1385296.9 | AQ10: 2003.147811 | AR10: 0.1067825271
B11: ACCESOS | C11: 16127.49 | D11: =C11/C26 -> 403.18725 | E11: 0.03762170229 | G11: ACCESOS | H11: 35519.8 | I11: 592.984975 | J11: 0.03914867681 | L11: ACCESOS | M11: 71697.7 | N11: 861.5441 | O11: 0.04728601457 | R11: ACCESOS | S11: 73223.42 | T11: 599.0135798 | U11: 0.03186789956 | X11: ACCESOS | Y11: 87482.25 | Z11: 435.6251867 | AA11: 0.03340540475 | AD11: ACCESOS | AE11: 120644.91 | AF11: 396.7799447 | AG11: 0.02222299534 | AJ11: ACCESOS | AK11: 182463.42 | AL11: 408.1590462 | AM11: 0.02152772681 | AO11: ACCESOS | AP11: 366164.8 | AQ11: 529.4765458 | AR11: 0.02822499833
B12: CANCELERIA | C12: 10002.77 | D12: =C12/C26 -> 250.06925 | E12: 0.02333414778 | G12: CANCELERIA | H12: 28521.91 | I12: 476.1587646 | J12: 0.03143584808 | L12: CANCELERIA | M12: 38895.76 | N12: 467.3847633 | O12: 0.02565250314 | R12: CANCELERIA | S12: 62287.85 | T12: 509.5537467 | U12: 0.02710858012 | X12: CANCELERIA | Y12: 67746.63 | Z12: 337.3500149 | AA12: 0.02586928886 | AD12: CANCELERIA | AE12: 132052.83 | AF12: 434.2985924 | AG12: 0.02432435339 | AJ12: CANCELERIA | AK12: 199719.76 | AL12: 446.7603794 | AM12: 0.0235636953 | AO12: CANCELERIA | AP12: 329103.98 | AQ12: 475.8863728 | AR12: 0.02536824753
B13: MOBILIARIO FIJO | C13: 76564.06 | D13: =C13/C26 -> 1914.1015 | E13: 0.1786062351 | G13: MOBILIARIO FIJO | H13: 56405.61 | I13: 941.6629382 | J13: 0.0621682835 | L13: MOBILIARIO FIJO | M13: 86652.44 | N13: 1041.245374 | O13: 0.05714895374 | R13: MOBILIARIO FIJO | S13: 141978.12 | T13: 1161.470223 | U13: 0.06179094706 | X13: MOBILIARIO FIJO | Y13: 117705.85 | Z13: 586.1261329 | AA13: 0.04494639267 | AD13: MOBILIARIO FIJO | AE13: 424811.21 | AF13: 1397.129547 | AG13: 0.07825093938 | AJ13: MOBILIARIO FIJO | AK13: 642487.96 | AL13: 1437.204635 | AM13: 0.07580316802 | AO13: MOBILIARIO FIJO | AP13: 849230.34 | AQ13: 1227.992278 | AR13: 0.06546102991
B14: GUARDA | C14: 14950.97 | D14: =C14/C26 -> 373.77425 | E14: 0.03487715337 | G14: GUARDA | H14: 32619.42 | I14: 544.5646077 | J14: 0.03595197978 | L14: GUARDA | M14: 73157.2 | N14: 879.0819515 | O14: 0.04824858294 | R14: GUARDA | S14: 63178 | T14: 516.835733 | U14: 0.02749598638 | X14: GUARDA | Y14: 35030.9 | Z14: 174.4392989 | AA14: 0.01337667233 | AD14: GUARDA | AE14: 267477.38 | AF14: =AE14/304.06 -> 879.6861804 | AG14: =AE14/5428832.08 -> 0.04926978327 | AJ14: GUARDA | AK14: 404541.25 | AL14: =AK14/447.04 -> 904.9330038 | AM14: =AK14/8475740.22 -> 0.04772931207 | AO14: GUARDA | AP14: 457990.6 | AQ14: =AP14/691.56 -> 662.2572156 | AR14: =AP14/12973067.2 -> 0.03530318566
AD15: EQUIPOS | AE15: 11422.79 | AF15: =AE15/304.06 -> 37.56755246 | AG15: =AE15/5428832.08 -> 0.00210409713 | AJ15: EQUIPOS | AK15: 17275.3 | AL15: =AK15/447.04 -> 38.64374553 | AM15: =AK15/8475740.22 -> 0.002038205461 | AO15: EQUIPOS | AP15: 68324.29 | AQ15: =AP15/691.56 -> 98.79734224 | AR15: =AP15/12973067.2 -> 0.005266625768
AD16: ACCESORIAS | AE16: 412602.97 | AF16: 1356.978787 | AG16: 0.07600216104 | AJ16: ACCESORIAS | AK16: 624029.11 | AL16: 1395.913363 | AM16: 0.07362532284 | AO16: ACCESORIAS | AP16: 915242.69 | AQ16: 1323.446541 | AR16: 0.07054944493
C23: =SUM(C2:C14) -> 428675.18 | E23: =SUM(E2:E14) -> 1 | H23: =SUM(H2:H14) -> 907305.25 | J23: =SUM(J2:J14) -> 1 | M23: =SUM(M2:M14) -> 1516255.93 | O23: =SUM(O2:O14) -> 1 | S23: =SUM(S2:S14) -> 2297717.17 | U23: =SUM(U2:U14) -> 1 | Y23: =SUM(Y2:Y14) -> 2618805.27 | AA23: =SUM(AA2:AA14) -> 1 | AE23: =SUM(AE2:AE16) -> 5428832.08 | AG23: =SUM(AG2:AG16) -> 1 | AK23: =SUM(AK2:AK16) -> 8475740.22 | AM23: =SUM(AM2:AM16) -> 1 | AP23: =SUM(AP2:AP16) -> 12973067.2 | AR23: =SUM(AR2:AR16) -> 1
C26: 40 | E26: =C23/C26 -> 10716.8795 | H26: 59.9 | J26: =H23/H26 -> 15146.99917 | M26: 80 | O26: =M23/M26 -> 18953.19912 | S26: 120 | U26: =S23/S26 -> 19147.64308 | Y26: 200.82 | AA26: =Y23/Y26 -> 13040.56005 | AE26: 300 | AG26: =AE23/AE26 -> 18096.10693 | AK26: 447.04 | AM26: =AK23/AK26 -> 18959.6909 | AP26: 691.56 | AR26: =AP23/AP26 -> 18759.13471
